[Event "Velká cena Novohradska - A"]
[Site "Nové Hrady, Czech Republic"]
[Date "2024.10.12"]
[Round "1.5"]
[White "Hokr, Matyáš"]
[Black "Postl, František"]
[Result "0-1"]
[TimeControl "2x20min+10s/tah"]
[WhiteFideId "23734663"]
[BlackFideId "23709448"]
[WhiteElo "1534"]
[BlackElo "1514"]

1. e4 {[%clk 00:20:15]} {[%emt 00:00:05]} c5 {[%clk 00:20:16]} {[%emt
00:00:05]} 2. f4 {[%clk 00:20:04]} {[%emt 00:00:20]} d6 {[%clk 00:20:12]}
{[%emt 00:00:15]} 3. Nf3 {[%clk 00:20:04]} {[%emt 00:00:09]} Nc6 {[%clk
00:19:58]} {[%emt 00:00:25]} 4. Bb5 {[%clk 00:20:08]} {[%emt 00:00:05]} Bg4
{[%clk 00:19:39]} {[%emt 00:00:29]} 5. d3 {[%clk 00:19:47]} {[%emt 00:00:29]}
a6 {[%clk 00:19:22]} {[%emt 00:00:30]} 6. Bc4 {[%clk 00:19:25]} {[%emt
00:00:31]} Nf6 {[%clk 00:18:34]} {[%emt 00:00:58]} 7. c3 {[%clk 00:18:04]}
{[%emt 00:01:30]} e6 {[%clk 00:18:38]} {[%emt 00:00:07]} 8. O-O {[%clk
00:17:40]} {[%emt 00:00:34]} Be7 {[%clk 00:16:03]} {[%emt 00:02:45]} 9. Qe1
{[%clk 00:17:12]} {[%emt 00:00:38]} d5 {[%clk 00:15:14]} {[%emt 00:01:00]} 10.
Bb3 {[%clk 00:16:40]} {[%emt 00:00:42]} Qb6 {[%clk 00:14:46]} {[%emt 00:00:37]}
11. Kh1 {[%clk 00:15:30]} {[%emt 00:01:21]} O-O {[%clk 00:13:54]} {[%emt
00:01:02]} 12. e5 {[%clk 00:10:17]} {[%emt 00:05:22]} Nd7 {[%clk 00:13:05]}
{[%emt 00:01:00]} 13. Qg3 {[%clk 00:10:17]} {[%emt 00:00:09]} Bf5 {[%clk
00:12:22]} {[%emt 00:00:52]} 14. c4 {[%clk 00:06:50]} {[%emt 00:03:38]} Bxd3
{[%clk 00:11:50]} {[%emt 00:00:42]} 15. Rd1 {[%clk 00:06:39]} {[%emt 00:00:19]}
dxc4 {[%clk 00:10:31]} {[%emt 00:01:32]} 16. Bxc4 {[%clk 00:05:36]} {[%emt
00:01:12]} Bxc4 {[%clk 00:10:38]} {[%emt 00:00:04]} 17. Rxd7 {[%clk 00:05:41]}
{[%emt 00:00:04]} Rad8 {[%clk 00:09:31]} {[%emt 00:01:18]} 18. Rxd8 {[%clk
00:05:44]} {[%emt 00:00:07]} Rxd8 {[%clk 00:09:39]} {[%emt 00:00:02]} 19. Nc3
{[%clk 00:05:52]} {[%emt 00:00:02]} Nb4 {[%clk 00:09:03]} {[%emt 00:00:46]} 20.
Bd2 {[%clk 00:04:01]} {[%emt 00:02:00]} Nd3 {[%clk 00:08:51]} {[%emt 00:00:22]}
21. b3 {[%clk 00:03:52]} {[%emt 00:00:20]} Bd5 {[%clk 00:08:24]} {[%emt
00:00:37]} 22. Nxd5 {[%clk 00:02:47]} {[%emt 00:01:15]} exd5 {[%clk 00:08:31]}
{[%emt 00:00:02]} 23. Be3 {[%clk 00:02:31]} {[%emt 00:00:26]} d4 {[%clk
00:08:38]} {[%emt 00:00:04]} 24. Bg1 {[%clk 00:02:29]} {[%emt 00:00:11]} Qh6
{[%clk 00:07:57]} {[%emt 00:00:51]} 25. f5 {[%clk 00:02:05]} {[%emt 00:00:35]}
Rd5 {[%clk 00:07:23]} {[%emt 00:00:43]} 26. f6 {[%clk 00:01:06]} {[%emt
00:01:09]} Bf8 {[%clk 00:07:08]} {[%emt 00:00:25]} 27. fxg7 {[%clk 00:01:10]}
{[%emt 00:00:06]} Bxg7 {[%clk 00:07:17]} {[%emt 00:00:02]} 28. Rd1 {[%clk
00:00:55]} {[%emt 00:00:25]} Nxe5 {[%clk 00:07:12]} {[%emt 00:00:14]} 29. Re1
{[%clk 00:01:03]} {[%emt 00:00:03]} Ng6 {[%clk 00:06:05]} {[%emt 00:01:17]} 30.
Re8+ {[%clk 00:00:55]} {[%emt 00:00:17]} Bf8 {[%clk 00:05:51]} {[%emt
00:00:25]} 31. Ne5 {[%clk 00:00:51]} {[%emt 00:00:14]} f6 {[%clk 00:04:55]}
{[%emt 00:01:06]} 32. Nxg6 {[%clk 00:00:25]} {[%emt 00:00:36]} hxg6 {[%clk
00:05:01]} {[%emt 00:00:03]} 33. Qf3 {[%clk 00:00:20]} {[%emt 00:00:15]} Qg5
{[%clk 00:04:42]} {[%emt 00:00:29]} 34. Qh3 {[%clk 00:00:17]} {[%emt 00:00:13]}
Rf5 {[%clk 00:03:04]} {[%emt 00:01:48]} 35. Qd3 {[%clk 00:00:19]} {[%emt
00:00:09]} b5 {[%clk 00:02:54]} {[%emt 00:00:19]} 36. a4 {[%clk 00:00:27]}
{[%emt 00:00:02]} Qc1 {[%clk 00:02:04]} {[%emt 00:01:01]} 37. axb5 {[%clk
00:00:18]} {[%emt 00:00:19]} Rf1 {[%clk 00:01:43]} {[%emt 00:00:30]} 38. Qc4+
{[%clk 00:00:24]} {[%emt 00:00:05]} Kg7 {[%clk 00:01:50]} {[%emt 00:00:03]} 39.
Qxf1 {[%clk 00:00:24]} {[%emt 00:00:10]} Qxf1 {[%clk 00:01:57]} {[%emt
00:00:02]} 0-1

[Event "Velká cena Novohradska - A"]
[Site "Nové Hrady, Czech Republic"]
[Date "2024.10.12"]
[Round "1.6"]
[White "Polanský, Matěj"]
[Black "Borecký, Andrej"]
[Result "0-1"]
[TimeControl "2x20min+10s/tah"]
[WhiteFideId "23741872"]
[BlackFideId "23752670"]
[WhiteElo "1475"]
[BlackElo "1778"]

1. e4 {[%clk 00:20:19]} {[%emt 00:24:03]} c6 {[%clk 00:20:18]} {[%emt
00:00:02]} 2. d4 {[%clk 00:20:26]} {[%emt 00:00:03]} d5 {[%clk 00:20:27]}
{[%emt 00:00:01]} 3. e5 {[%clk 00:20:35]} Bf5 {[%clk 00:20:29]} {[%emt
00:00:09]} 4. Nc3 {[%clk 00:20:13]} {[%emt 00:00:33]} e6 {[%clk 00:20:29]}
{[%emt 00:00:09]} 5. Bd3 {[%clk 00:19:46]} {[%emt 00:00:37]} Bg6 {[%clk
00:20:23]} {[%emt 00:00:16]} 6. f4 {[%clk 00:19:16]} {[%emt 00:00:40]} Nd7
{[%clk 00:19:56]} {[%emt 00:00:37]} 7. Nf3 {[%clk 00:19:20]} {[%emt 00:00:07]}
Bb4 {[%clk 00:19:35]} {[%emt 00:00:30]} 8. Bd2 {[%clk 00:19:19]} {[%emt
00:00:11]} Ne7 {[%clk 00:19:17]} {[%emt 00:00:28]} 9. O-O {[%clk 00:19:04]}
{[%emt 00:00:25]} Bxd3 {[%clk 00:19:18]} {[%emt 00:00:09]} 10. cxd3 {[%clk
00:19:11]} {[%emt 00:00:03]} c5 {[%clk 00:18:45]} {[%emt 00:00:44]} 11. dxc5
{[%clk 00:18:53]} {[%emt 00:00:28]} Nxc5 {[%clk 00:18:20]} {[%emt 00:00:35]} 12.
d4 {[%clk 00:18:41]} {[%emt 00:00:22]} Bxc3 {[%clk 00:17:34]} {[%emt 00:00:55]}
13. Bxc3 {[%clk 00:18:31]} {[%emt 00:00:21]} Ne4 {[%clk 00:17:42]} {[%emt
00:00:02]} 14. Rc1 {[%clk 00:18:30]} {[%emt 00:00:10]} Rc8 {[%clk 00:17:01]}
{[%emt 00:00:51]} 15. Qa4+ {[%clk 00:17:48]} {[%emt 00:00:52]} Qd7 {[%clk
00:16:45]} {[%emt 00:00:26]} 16. Qb3 {[%clk 00:16:04]} {[%emt 00:01:54]} O-O
{[%clk 00:16:22]} {[%emt 00:00:33]} 17. Bb4 {[%clk 00:15:34]} {[%emt 00:00:39]}
Rfd8 {[%clk 00:15:49]} {[%emt 00:00:44]} 18. Qa3 {[%clk 00:14:31]} {[%emt
00:01:14]} Nc6 {[%clk 00:15:40]} {[%emt 00:00:19]} 19. Bc5 {[%clk 00:14:08]}
{[%emt 00:00:32]} b6 {[%clk 00:15:42]} {[%emt 00:00:08]} 20. Bd6 {[%clk
00:13:21]} {[%emt 00:00:57]} Nxd6 {[%clk 00:15:39]} {[%emt 00:00:13]} 21. Qxd6
{[%clk 00:13:12]} {[%emt 00:00:19]} Qxd6 {[%clk 00:15:48]} {[%emt 00:00:02]} 22.
exd6 {[%clk 00:13:20]} Rxd6 {[%clk 00:15:56]} {[%emt 00:00:02]} 23. Ne5 {[%emt
00:00:08]} f6 {[%clk 00:15:43]} {[%emt 00:00:21]} 24. Nxc6 {[%clk 00:12:58]}
{[%emt 00:00:36]} Rdxc6 {[%clk 00:15:52]} 25. Rce1 {[%clk 00:12:32]} {[%emt
00:00:37]} Kf7 {[%clk 00:15:53]} {[%emt 00:00:10]} 26. Rf2 {[%clk 00:12:25]}
{[%emt 00:00:16]} Rc2 {[%clk 00:15:51]} {[%emt 00:00:11]} 27. Rfe2 {[%clk
00:12:25]} {[%emt 00:00:10]} Rxe2 {[%clk 00:15:16]} {[%emt 00:00:46]} 28. Rxe2
{[%clk 00:12:33]} {[%emt 00:00:03]} Rc4 {[%clk 00:15:24]} 29. Rd2 {[%clk
00:12:31]} {[%emt 00:00:13]} Kg6 {[%clk 00:15:01]} {[%emt 00:00:34]} 30. Kf2
{[%clk 00:12:29]} {[%emt 00:00:11]} Kf5 {[%clk 00:14:50]} {[%emt 00:00:19]} 31.
Kf3 {[%clk 00:12:30]} {[%emt 00:00:11]} h5 {[%clk 00:14:38]} {[%emt 00:00:22]}
32. h3 {[%clk 00:12:22]} {[%emt 00:00:18]} h4 {[%clk 00:14:40]} {[%emt
00:00:08]} 33. g4+ {[%clk 00:11:30]} {[%emt 00:01:02]} hxg3 {[%clk 00:14:47]}
{[%emt 00:00:02]} 34. Kxg3 {[%clk 00:11:36]} {[%emt 00:00:04]} Rc1 {[%clk
00:14:34]} {[%emt 00:00:24]} 35. a3 {[%clk 00:10:42]} {[%emt 00:01:05]} Rf1
{[%clk 00:13:25]} {[%emt 00:01:18]} 36. Rc2 {[%clk 00:10:09]} {[%emt 00:00:43]}
Rxf4 {[%clk 00:13:31]} {[%emt 00:00:05]} 37. Rc7 {[%clk 00:10:17]} {[%emt
00:00:02]} Rxd4 {[%clk 00:13:33]} {[%emt 00:00:07]} 38. Rxg7 {[%clk 00:10:08]}
{[%emt 00:00:19]} Rd3+ {[%clk 00:13:23]} {[%emt 00:00:20]} 39. Kg2 {[%clk
00:09:47]} {[%emt 00:00:26]} Rd2+ {[%clk 00:10:54]} {[%emt 00:02:44]} 40. Kf3
{[%clk 00:09:38]} {[%emt 00:00:18]} e5 {[%clk 00:10:34]} {[%emt 00:00:31]} 41.
h4 {[%clk 00:09:12]} {[%emt 00:00:36]} Rd3+ {[%clk 00:10:24]} {[%emt 00:00:21]}
42. Kg2 {[%clk 00:09:20]} {[%emt 00:00:01]} Rd4 {[%clk 00:09:45]} {[%emt
00:00:50]} 43. Kg3 {[%clk 00:09:15]} {[%emt 00:00:14]} Rd1 {[%clk 00:09:41]}
{[%emt 00:00:13]} 44. Kg2 {[%clk 00:09:16]} {[%emt 00:00:09]} e4 {[%clk
00:09:15]} {[%emt 00:00:37]} 45. h5 {[%clk 00:09:01]} {[%emt 00:00:24]} e3
{[%clk 00:07:45]} {[%emt 00:01:41]} 46. Kf3 {[%clk 00:08:40]} {[%emt 00:00:31]}
d4 {[%clk 00:07:43]} {[%emt 00:00:12]} 47. h6 {[%clk 00:08:18]} {[%emt
00:00:31]} Rf1+ {[%clk 00:07:33]} {[%emt 00:00:20]} 48. Ke2 {[%clk 00:08:11]}
{[%emt 00:00:16]} Rf2+ {[%clk 00:07:42]} 49. Ke1 {[%clk 00:08:08]} {[%emt
00:00:16]} d3 {[%clk 00:07:41]} {[%emt 00:00:11]} 50. Rg1 {[%clk 00:07:37]}
{[%emt 00:00:38]} Rxb2 {[%clk 00:07:30]} {[%emt 00:00:24]} 51. Kf1 {[%clk
00:06:42]} {[%emt 00:01:05]} Rb1+ {[%clk 00:07:22]} {[%emt 00:00:18]} 52. Kg2
{[%clk 00:06:51]} {[%emt 00:00:02]} Rxg1+ {[%clk 00:07:28]} {[%emt 00:00:03]}
53. Kxg1 {[%clk 00:06:59]} d2 {[%clk 00:07:17]} {[%emt 00:00:21]} 54. h7 {[%clk
00:06:46]} {[%emt 00:00:25]} d1=Q+ {[%clk 00:07:24]} {[%emt 00:00:03]} 55. Kg2
{[%clk 00:06:53]} Qh5 {[%clk 00:07:26]} {[%emt 00:00:10]} 56. a4 {[%clk
00:06:56]} {[%emt 00:00:07]} e2 {[%clk 00:06:29]} {[%emt 00:01:07]} 57. a5
{[%clk 00:06:51]} {[%emt 00:00:15]} e1=Q {[%clk 00:06:20]} {[%emt 00:00:17]} 58.
h8=Q {[%clk 00:06:48]} {[%emt 00:00:15]} Qg4+ {[%clk 00:06:09]} {[%emt
00:00:20]} 59. Kh2 {[%clk 00:06:46]} {[%emt 00:00:12]} Qeg1# {[%clk 00:06:15]}
{[%emt 00:00:03]} 0-1

[Event "Velká cena Novohradska - A"]
[Site "Nové Hrady, Czech Republic"]
[Date "2024.10.12"]
[Round "1.7"]
[White "Šebesta, Marek"]
[Black "Ponomarenko, Marko"]
[Result "1-0"]
[TimeControl "2x20min+10s/tah"]
[WhiteFideId "23765119"]
[BlackFideId "23777931"]
[WhiteElo "1707"]
[BlackElo "1498"]

1. e4 {[%clk 00:20:19]} {[%emt 15:54:28]} e5 {[%clk 00:20:18]} {[%emt
00:00:02]} 2. Nf3 {[%clk 00:20:27]} {[%emt 00:00:03]} Nc6 {[%clk 00:20:26]}
{[%emt 00:00:02]} 3. Bc4 {[%clk 00:20:32]} {[%emt 00:00:04]} Bc5 {[%clk
00:20:34]} {[%emt 00:00:03]} 4. c3 {[%clk 00:20:33]} {[%emt 00:00:09]} Nf6
{[%clk 00:20:42]} {[%emt 00:00:02]} 5. d4 {[%clk 00:20:42]} {[%emt 00:00:02]}
exd4 {[%clk 00:20:32]} {[%emt 00:00:20]} 6. cxd4 {[%clk 00:20:50]} {[%emt
00:00:01]} Bb4+ {[%clk 00:20:39]} {[%emt 00:00:03]} 7. Nc3 {[%clk 00:20:59]}
{[%emt 00:00:02]} O-O {[%clk 00:20:33]} {[%emt 00:00:16]} 8. O-O {[%clk
00:20:23]} {[%emt 00:00:46]} Bxc3 {[%clk 00:20:17]} {[%emt 00:00:26]} 9. bxc3
{[%clk 00:20:16]} {[%emt 00:00:16]} Nxe4 {[%clk 00:20:14]} {[%emt 00:00:13]} 10.
Qc2 {[%clk 00:19:27]} {[%emt 00:00:59]} d5 {[%clk 00:20:20]} {[%emt 00:00:04]}
11. Bd3 {[%clk 00:18:55]} {[%emt 00:00:41]} Bf5 {[%clk 00:20:07]} {[%emt
00:00:24]} 12. Ng5 {[%emt 00:03:41]} Nxg5 {[%clk 00:19:14]} {[%emt 00:00:59]}
13. Bxf5 {[%clk 00:15:36]} {[%emt 00:00:02]} g6 {[%clk 00:18:55]} {[%emt
00:00:29]} 14. Bd3 {[%clk 00:15:24]} {[%emt 00:00:22]} Re8 {[%clk 00:18:26]}
{[%emt 00:00:38]} 15. Bf4 {[%clk 00:14:02]} {[%emt 00:01:32]} Ne6 {[%clk
00:18:28]} {[%emt 00:00:09]} 16. Bg3 {[%clk 00:12:46]} {[%emt 00:01:27]} a5
{[%clk 00:17:54]} {[%emt 00:00:44]} 17. Rab1 {[%clk 00:12:01]} {[%emt
00:00:55]} b6 {[%clk 00:17:39]} {[%emt 00:00:25]} 18. Bb5 {[%clk 00:11:33]}
{[%emt 00:00:38]} Na7 {[%clk 00:16:08]} {[%emt 00:01:40]} 19. Bxe8 {[%clk
00:11:28]} {[%emt 00:00:15]} Qxe8 {[%clk 00:16:16]} {[%emt 00:00:02]} 20. Rfe1
{[%clk 00:11:14]} {[%emt 00:00:24]} Qc6 {[%clk 00:16:22]} {[%emt 00:00:04]} 21.
Qd2 {[%clk 00:09:38]} {[%emt 00:01:46]} Nb5 {[%clk 00:15:39]} {[%emt 00:00:53]}
22. Re3 {[%clk 00:07:21]} {[%emt 00:02:26]} Na3 {[%clk 00:15:20]} {[%emt
00:00:30]} 23. Rbe1 {[%clk 00:04:30]} {[%emt 00:03:01]} Nc4 {[%clk 00:15:26]}
{[%emt 00:00:04]} 24. Qe2 {[%clk 00:04:11]} {[%emt 00:00:30]} Nxe3 {[%clk
00:15:32]} {[%emt 00:00:04]} 25. Qxe3 {[%clk 00:04:19]} {[%emt 00:00:02]} Ng7
{[%clk 00:15:16]} {[%emt 00:00:24]} 26. Qf3 {[%clk 00:03:27]} {[%emt 00:01:03]}
Nf5 {[%clk 00:14:52]} {[%emt 00:00:34]} 27. Bf4 {[%clk 00:02:56]} {[%emt
00:00:41]} Kf8 {[%clk 00:13:54]} {[%emt 00:01:08]} 28. g4 {[%clk 00:02:57]}
{[%emt 00:00:08]} Ne7 {[%clk 00:13:14]} {[%emt 00:00:51]} 29. Bh6+ {[%clk
00:02:47]} {[%emt 00:00:19]} Ke8 {[%clk 00:13:13]} {[%emt 00:00:13]} 30. Qe3
{[%clk 00:02:35]} {[%emt 00:00:21]} Qd6 {[%clk 00:12:13]} {[%emt 00:01:10]} 31.
Bf4 {[%clk 00:02:06]} {[%emt 00:00:39]} Qe6 {[%clk 00:11:56]} {[%emt 00:00:28]}
32. Bxc7 {[%clk 00:01:34]} {[%emt 00:00:42]} Qxe3 {[%clk 00:11:44]} {[%emt
00:00:20]} 33. Rxe3 {[%clk 00:01:43]} Kd7 {[%clk 00:11:49]} {[%emt 00:00:07]}
34. Bxb6 {[%clk 00:01:51]} {[%emt 00:00:02]} a4 {[%clk 00:11:31]} {[%emt
00:00:28]} 35. Bc5 {[%clk 00:01:48]} {[%emt 00:00:13]} Re8 {[%clk 00:11:39]}
{[%emt 00:00:02]} 36. Rf3 {[%clk 00:01:25]} {[%emt 00:00:33]} f5 {[%clk
00:10:58]} {[%emt 00:00:51]} 37. gxf5 {[%clk 00:01:33]} {[%emt 00:00:02]} gxf5
{[%clk 00:11:06]} {[%emt 00:00:02]} 38. Bxe7 {[%clk 00:01:41]} Rxe7 {[%clk
00:11:15]} {[%emt 00:00:04]} 39. Rxf5 {[%clk 00:01:50]} Kc6 {[%clk 00:11:17]}
{[%emt 00:00:08]} 40. Rf6+ {[%clk 00:01:37]} {[%emt 00:00:23]} Kb5 {[%clk
00:11:25]} {[%emt 00:00:02]} 41. f4 {[%clk 00:01:09]} {[%emt 00:00:37]} Kc4
{[%clk 00:11:18]} {[%emt 00:00:17]} 42. Rc6+ {[%clk 00:01:18]} Kd3 {[%clk
00:11:27]} {[%emt 00:00:03]} 43. Kf2 {[%clk 00:01:08]} {[%emt 00:00:21]} Ke4
{[%clk 00:11:33]} {[%emt 00:00:03]} 44. Ra6 {[%clk 00:00:49]} {[%emt 00:00:29]}
Kxf4 {[%clk 00:11:31]} {[%emt 00:00:12]} 45. Rxa4 {[%clk 00:00:58]} Re3 {[%clk
00:11:25]} {[%emt 00:00:17]} 46. Ra5 {[%clk 00:00:45]} {[%emt 00:00:24]} Ke4
{[%clk 00:11:19]} {[%emt 00:00:15]} 47. Rc5 {[%clk 00:00:54]} {[%emt 00:00:02]}
h5 {[%clk 00:11:18]} {[%emt 00:00:11]} 48. a4 {[%clk 00:01:00]} {[%emt
00:00:04]} Rf3+ {[%clk 00:11:15]} {[%emt 00:00:12]} 49. Kg2 {[%clk 00:00:53]}
{[%emt 00:00:17]} Rf6 {[%clk 00:11:12]} {[%emt 00:00:13]} 50. a5 {[%clk
00:00:56]} {[%emt 00:00:08]} Ra6 {[%clk 00:11:21]} 51. Kg3 {[%clk 00:01:04]}
{[%emt 00:00:01]} h4+ {[%clk 00:09:05]} {[%emt 00:02:26]} 52. Kxh4 {[%clk
00:00:51]} {[%emt 00:00:23]} Kf4 {[%clk 00:09:13]} {[%emt 00:00:02]} 53. Kh5
{[%clk 00:00:54]} {[%emt 00:00:07]} Ke4 {[%clk 00:09:04]} {[%emt 00:00:19]} 54.
h4 {[%clk 00:00:58]} {[%emt 00:00:01]} Ra8 {[%clk 00:09:10]} {[%emt 00:00:08]}
55. Kg6 {[%clk 00:00:52]} {[%emt 00:00:16]} Rg8+ {[%clk 00:08:44]} {[%emt
00:00:37]} 56. Kh7 {[%clk 00:01:01]} Rg4 {[%clk 00:08:52]} {[%emt 00:00:03]} 57.
h5 {[%clk 00:01:07]} {[%emt 00:00:03]} Rf4 {[%clk 00:08:53]} {[%emt 00:00:10]}
58. h6 {[%clk 00:01:11]} {[%emt 00:00:06]} Rf6 {[%clk 00:08:56]} {[%emt
00:00:06]} 59. Kg7 {[%clk 00:01:20]} {[%emt 00:00:03]} Rd6 {[%clk 00:09:04]} 60.
Rc7 {[%clk 00:01:17]} {[%emt 00:00:13]} 1-0

[Event "Velká cena Novohradska - A"]
[Site "Nové Hrady, Czech Republic"]
[Date "2024.10.12"]
[Round "2.1"]
[White "Borecký, Andrej"]
[Black "Garabik, Marek"]
[Result "0-1"]
[TimeControl "2x20min+10s/tah"]
[WhiteFideId "23752670"]
[BlackFideId "23717742"]
[WhiteElo "1778"]
[BlackElo "1925"]

1. d4 {[%clk 00:20:13]} {[%emt 00:00:06]} e6 {[%clk 00:20:19]} {[%emt
00:00:02]} 2. c4 {[%clk 00:20:12]} {[%emt 00:00:11]} d5 {[%clk 00:20:28]} 3.
Nc3 {[%clk 00:20:21]} Nf6 {[%clk 00:20:37]} {[%emt 00:00:02]} 4. Bg5 {[%clk
00:20:29]} {[%emt 00:00:02]} Be7 {[%clk 00:20:36]} {[%emt 00:00:11]} 5. e3
{[%clk 00:20:38]} O-O {[%clk 00:20:43]} {[%emt 00:00:03]} 6. Nf3 {[%clk
00:20:46]} {[%emt 00:00:02]} Nbd7 {[%clk 00:20:30]} {[%emt 00:00:23]} 7. Be2
{[%clk 00:20:47]} {[%emt 00:00:07]} h6 {[%clk 00:20:39]} 8. Bh4 {[%clk
00:20:56]} {[%emt 00:00:04]} dxc4 {[%clk 00:20:02]} {[%emt 00:00:47]} 9. Bxc4
{[%clk 00:21:00]} {[%emt 00:00:05]} c5 {[%clk 00:20:07]} {[%emt 00:00:05]} 10.
O-O {[%clk 00:20:53]} {[%emt 00:00:17]} cxd4 {[%clk 00:20:16]} {[%emt
00:00:02]} 11. Nxd4 {[%clk 00:20:50]} {[%emt 00:00:13]} Nb6 {[%clk 00:20:23]}
{[%emt 00:00:02]} 12. Be2 {[%clk 00:20:29]} {[%emt 00:00:31]} Nbd5 {[%clk
00:20:13]} {[%emt 00:00:20]} 13. Rc1 {[%clk 00:20:23]} {[%emt 00:00:16]} Bd7
{[%clk 00:19:53]} {[%emt 00:00:30]} 14. Bf3 {[%clk 00:18:26]} {[%emt 00:02:07]}
Bc6 {[%clk 00:17:53]} {[%emt 00:02:11]} 15. Nxc6 {[%clk 00:18:05]} {[%emt
00:00:31]} bxc6 {[%clk 00:17:59]} {[%emt 00:00:03]} 16. Na4 {[%clk 00:17:23]}
{[%emt 00:00:53]} Rc8 {[%clk 00:17:30]} {[%emt 00:00:39]} 17. a3 {[%clk
00:16:41]} {[%emt 00:00:51]} Nd7 {[%clk 00:16:14]} {[%emt 00:01:27]} 18. Bxe7
{[%clk 00:14:56]} {[%emt 00:01:55]} Qxe7 {[%clk 00:16:22]} 19. b4 {[%clk
00:14:52]} {[%emt 00:00:15]} Rfd8 {[%clk 00:16:09]} {[%emt 00:00:24]} 20. Qb3
{[%clk 00:13:46]} {[%emt 00:01:16]} Ne5 {[%clk 00:15:16]} {[%emt 00:01:03]} 21.
Be2 {[%clk 00:13:13]} {[%emt 00:00:43]} Qh4 {[%clk 00:13:16]} {[%emt 00:02:09]}
22. f4 {[%clk 00:12:38]} {[%emt 00:00:46]} Ng4 {[%clk 00:13:12]} {[%emt
00:00:14]} 23. Bxg4 {[%clk 00:12:46]} {[%emt 00:00:02]} Qxg4 {[%clk 00:13:21]}
{[%emt 00:00:01]} 24. Rf3 {[%clk 00:12:39]} {[%emt 00:00:16]} Qf5 {[%clk
00:12:18]} {[%emt 00:01:13]} 25. Nc5 {[%clk 00:12:15]} {[%emt 00:00:35]} Nf6
{[%clk 00:12:15]} {[%emt 00:00:12]} 26. Nb7 {[%clk 00:09:44]} {[%emt 00:02:41]}
Rd3 {[%clk 00:09:58]} {[%emt 00:02:27]} 27. Qa4 {[%clk 00:06:18]} {[%emt
00:03:37]} Qd5 {[%clk 00:06:49]} {[%emt 00:03:18]} 28. b5 {[%clk 00:02:24]}
{[%emt 00:04:05]} c5 {[%clk 00:05:30]} {[%emt 00:01:29]} 29. Qxa7 {[%clk
00:00:40]} {[%emt 00:01:53]} Ne4 {[%clk 00:05:15]} {[%emt 00:00:26]} 30. Na5
{[%clk 00:00:11]} {[%emt 00:00:39]} Rd1+ {[%clk 00:04:14]} {[%emt 00:01:10]} 31.
Rf1 {[%clk 00:00:14]} {[%emt 00:00:07]} Rxc1 {[%clk 00:04:19]} {[%emt
00:00:04]} 32. Rxc1 {[%clk 00:00:23]} Qd2 {[%clk 00:04:28]} {[%emt 00:00:03]}
33. Rf1 {[%clk 00:00:11]} {[%emt 00:00:23]} Qxe3+ {[%clk 00:04:34]} {[%emt
00:00:03]} 34. Kh1 {[%clk 00:00:14]} {[%emt 00:00:07]} Nf2+ {[%clk 00:04:41]}
{[%emt 00:00:04]} 35. Kg1 {[%clk 00:00:12]} {[%emt 00:00:11]} Nh3+ {[%clk
00:04:49]} {[%emt 00:00:03]} 36. Kh1 {[%clk 00:00:17]} {[%emt 00:00:05]} Qg1+
{[%clk 00:04:57]} 37. Rxg1 {[%clk 00:00:25]} {[%emt 00:00:02]} Nf2# {[%clk
00:05:06]} {[%emt 00:00:01]} 0-1

[Event "Velká cena Novohradska - A"]
[Site "Nové Hrady, Czech Republic"]
[Date "2024.10.12"]
[Round "2.2"]
[White "Postl, František"]
[Black "Rendl, Luboš"]
[Result "1-0"]
[TimeControl "2x20min+10s/tah"]
[WhiteFideId "23709448"]
[BlackFideId "23750197"]
[WhiteElo "1514"]
[BlackElo "1860"]

1. e4 {[%clk 00:20:19]} {[%emt 00:04:41]} c5 {[%clk 00:20:17]} {[%emt
00:00:04]} 2. Nf3 {[%clk 00:20:27]} {[%emt 00:00:03]} Nc6 {[%clk 00:20:26]} 3.
d4 {[%clk 00:20:36]} cxd4 {[%emt 00:00:03]} 4. c3 dxc3 {[%clk 00:20:42]} {[%emt
00:00:02]} 5. Bc4 {[%clk 00:20:54]} e6 {[%clk 00:20:30]} {[%emt 00:00:23]} 6.
Nxc3 {[%clk 00:21:01]} {[%emt 00:00:03]} a6 {[%clk 00:20:39]} {[%emt 00:00:01]}
7. Bg5 {[%clk 00:20:57]} {[%emt 00:00:14]} Be7 {[%clk 00:20:22]} {[%emt
00:00:26]} 8. Bf4 {[%clk 00:20:54]} {[%emt 00:00:14]} b5 {[%clk 00:20:08]}
{[%emt 00:00:24]} 9. Bb3 {[%clk 00:21:00]} {[%emt 00:00:04]} Bb7 {[%clk
00:19:35]} {[%emt 00:00:43]} 10. O-O {[%clk 00:20:57]} {[%emt 00:00:13]} Bc5
{[%clk 00:19:28]} {[%emt 00:00:17]} 11. e5 {[%clk 00:20:22]} {[%emt 00:00:45]}
Nge7 {[%clk 00:19:20]} {[%emt 00:00:18]} 12. Ne4 {[%clk 00:20:29]} {[%emt
00:00:03]} Qb6 {[%clk 00:17:08]} {[%emt 00:02:22]} 13. Rc1 {[%clk 00:20:23]}
{[%emt 00:00:16]} Bb4 {[%clk 00:14:57]} {[%emt 00:02:21]} 14. a3 {[%clk
00:20:31]} {[%emt 00:00:02]} Ba5 {[%clk 00:15:06]} {[%emt 00:00:01]} 15. Nd6+
{[%clk 00:20:32]} {[%emt 00:00:09]} Kf8 {[%clk 00:14:51]} {[%emt 00:00:25]} 16.
Be3 {[%clk 00:20:30]} {[%emt 00:00:12]} Qc7 {[%clk 00:14:54]} {[%emt 00:00:07]}
17. Ng5 {[%clk 00:20:03]} {[%emt 00:00:36]} f6 {[%clk 00:14:03]} {[%emt
00:01:02]} 18. Qf3 {[%clk 00:20:01]} {[%emt 00:00:12]} Nxe5 {[%clk 00:11:58]}
{[%emt 00:02:16]} 19. Qxb7 {[%clk 00:19:25]} {[%emt 00:00:45]} Qxb7 {[%clk
00:11:38]} {[%emt 00:00:30]} 20. Nxb7 {[%clk 00:19:31]} {[%emt 00:00:03]} N7c6
{[%clk 00:11:40]} {[%emt 00:00:09]} 21. Bc5+ {[%clk 00:18:51]} {[%emt
00:00:50]} Kg8 {[%clk 00:11:11]} {[%emt 00:00:39]} 22. Ne4 {[%clk 00:18:01]}
{[%emt 00:01:00]} Rb8 {[%clk 00:10:42]} {[%emt 00:00:39]} 23. Nbd6 {[%clk
00:17:35]} {[%emt 00:00:36]} f5 {[%clk 00:10:04]} {[%emt 00:00:48]} 24. Ng5
{[%clk 00:17:28]} {[%emt 00:00:16]} h6 {[%clk 00:09:48]} {[%emt 00:00:26]} 25.
Nxe6 {[%clk 00:16:18]} {[%emt 00:01:21]} dxe6 {[%clk 00:08:57]} {[%emt
00:01:00]} 26. Bxe6+ {[%clk 00:16:24]} {[%emt 00:00:05]} Kh7 {[%clk 00:09:05]}
{[%emt 00:00:02]} 27. Bxf5+ {[%clk 00:16:31]} {[%emt 00:00:02]} g6 {[%clk
00:09:14]} {[%emt 00:00:02]} 28. Be4 {[%clk 00:16:15]} {[%emt 00:00:25]} Bb6
{[%clk 00:07:28]} {[%emt 00:01:57]} 29. f4 {[%clk 00:15:56]} {[%emt 00:00:29]}
Nd7 {[%clk 00:06:42]} {[%emt 00:00:56]} 30. Bxb6 {[%clk 00:15:33]} {[%emt
00:00:33]} Nxb6 {[%clk 00:06:45]} {[%emt 00:00:07]} 31. Rxc6 {[%clk 00:15:35]}
{[%emt 00:00:08]} 1-0